bitfinex-derivatives/quotes_BTCF0:USTF0_20260118
["timestamp","ask_amount","ask_price","bid_price","bid_amount"]
[1768706929356,0.20343335,95216.0,95202.0,0.03786114]
[1768706929550,0.20343335,95217.0,95203.0,0.03786114]
[1768706929749,0.20343335,95217.0,95200.0,0.00912046]
[1768706930048,0.20343335,95216.0,95201.0,0.03786114]
[1768706930243,0.20343335,95217.0,95202.0,0.03786114]
[1768706930448,0.20343335,95217.0,95203.0,0.03786114]
[1768706930655,0.20343335,95215.0,95200.0,0.00912046]
[1768706930856,0.20343335,95217.0,95201.0,0.03786114]
[1768706931154,0.20343335,95215.0,95202.0,0.03786114]
[1768706931454,0.20343335,95217.0,95203.0,0.03786114]
[1768706931642,0.20343335,95217.0,95204.0,0.03786114]
[1768706931845,0.20343335,95215.0,95200.0,0.00912046]
[1768706932055,0.20343335,95217.0,95201.0,0.03786114]
[1768706932245,0.21316475,95217.0,95202.0,0.03786114]
[1768706932545,0.20343335,95215.0,95203.0,0.03786114]
[1768706932746,0.20343335,95213.0,95204.0,0.03786114]
[1768706933060,0.20343335,95215.0,95200.0,0.037791]
[1768706933357,0.20343335,95215.0,95201.0,0.03786114]
[1768706933552,0.20343335,95214.0,95202.0,0.03786114]
[1768706933753,0.20343335,95215.0,95203.0,0.03786114]
[1768706933953,0.20343335,95216.0,95204.0,0.03786114]
[1768706934273,0.20343335,95212.0,95205.0,0.03786114]
[1768706934553,0.20343335,95215.0,95201.0,0.037791]
[1768706934757,0.20343335,95213.0,95202.0,0.03786023]
[1768706934958,0.20343335,95215.0,95203.0,0.03786023]
[1768706935255,0.20343335,95215.0,95204.0,0.03786023]
[1768706935457,0.20343335,95213.0,95205.0,0.03786023]
[1768706935658,0.20343335,95216.0,95203.0,0.010508]
[1768706935960,0.20343335,95216.0,95204.0,0.03786022]
[1768706936151,0.20343335,95213.0,95205.0,0.03786022]
[1768706936352,0.20343335,95214.0,95200.0,0.16821491]
[1768706936652,0.0120034,95222.0,95207.0,0.02003008]
[1768706936852,0.105146,95225.0,95208.0,0.00952208]
[1768706937047,0.20574369,95224.0,95208.0,0.00952208]
[1768706937246,0.20343335,95222.0,95208.0,0.02002908]
[1768706937646,0.20343335,95221.0,95208.0,0.02002908]
[1768706937847,0.00231034,95224.0,95208.0,0.02002908]
[1768706937848,0.20343335,95222.0,95208.0,0.02002908]
[1768706938050,0.20343335,95222.0,95210.0,0.11039383]
[1768706938251,0.20343335,95221.0,95210.0,0.11039383]
[1768706938651,0.20343335,95219.0,95210.0,0.11991591]
[1768706938955,0.0097314,95227.0,95211.0,0.06594505]
[1768706939155,0.0097314,95227.0,95211.0,0.02808877]
[1768706939361,0.0097314,95227.0,95212.0,0.0659455]
[1768706939564,0.0097314,95227.0,95212.0,0.02808877]
[1768706939763,0.0097314,95227.0,95213.0,0.06594508]
[1768706939961,0.0097314,95231.0,95213.0,0.02808877]
[1768706940162,0.0097314,95230.0,95213.0,0.02808877]
[1768706940464,0.21477201,95231.0,95214.0,0.06594463]
[1768706940763,0.01141643,95231.0,95214.0,0.02808877]
[1768706941066,0.20335558,95230.0,95214.0,0.02808877]
[1768706941256,0.21308698,95231.0,95215.0,0.06594451]
[1768706941558,0.20335558,95233.0,95215.0,0.02808877]
[1768706941765,0.0097314,95229.0,95215.0,0.02808877]
[1768706942063,0.06218576,95230.0,95215.0,0.02808877]
[1768706942259,0.06218576,95228.0,95216.0,0.06594445]
[1768706942461,0.06218576,95224.0,95210.0,0.037791]
[1768706942666,0.06218576,95224.0,95211.0,0.03785572]
[1768706942864,0.20335558,95219.0,95212.0,0.03785572]
[1768706943165,0.146572,95220.0,95213.0,0.03785572]
[1768706943364,0.146572,95219.0,95214.0,0.03785572]
[1768706943563,0.06218576,95224.0,95215.0,0.03785572]
[1768706943764,0.22976776,95229.0,95216.0,0.03785572]
[1768706943966,0.06218576,95226.0,95211.0,0.037791]
[1768706944174,0.157077,95223.0,95211.0,0.037791]
[1768706944357,0.157077,95221.0,95213.0,0.037791]
[1768706944666,0.157077,95223.0,95213.0,0.037791]
[1768706944861,0.157077,95220.0,95213.0,0.037791]
[1768706945359,0.157077,95217.0,95216.0,0.037791]
[1768706945559,0.157077,95223.0,95216.0,0.037791]
[1768706945759,0.157077,95218.0,95216.0,0.037791]
[1768706945966,0.157077,95219.0,95216.0,0.037791]
[1768706946169,0.157077,95218.0,95216.0,0.037791]
[1768706946367,0.01511785,95219.0,95215.0,0.05667906]
[1768706946559,0.01511785,95223.0,95218.0,0.05667906]
[1768706946758,0.01511785,95223.0,95221.0,0.05667906]
[1768706946959,0.06218576,95226.0,95221.0,0.05667906]
[1768706947160,0.01511785,95222.0,95221.0,0.05667906]
[1768706947359,0.01511785,95222.0,95213.0,0.07557208]
[1768706947360,0.01511785,95222.0,95213.0,0.08607908]
[1768706947569,0.07403455,95231.0,95213.0,0.08607908]
[1768706947768,0.07403455,95231.0,95224.0,0.03765664]
[1768706948368,0.07517532,95231.0,95224.0,0.03765664]
[1768706950071,0.08568032,95231.0,95224.0,0.03765664]
[1768706950765,0.08568032,95231.0,95222.0,0.03765664]
[1768706951460,0.08568032,95231.0,95220.0,0.03765664]
[1768706952766,0.08568032,95231.0,95219.0,0.03765664]
[1768706954469,0.00292234,95229.0,95219.0,0.03765664]
[1768706954871,0.00292234,95229.0,95218.0,0.03765664]
[1768706955169,0.01342734,95229.0,95218.0,0.03765664]
[1768706955970,0.01342734,95229.0,95219.0,0.03220748]
[1768706956172,0.01342734,95229.0,95220.0,0.03220748]
[1768706956371,0.01342734,95229.0,95221.0,0.03220748]
[1768706956671,0.01342734,95229.0,95222.0,0.03220748]
[1768706956870,0.01342734,95229.0,95215.0,0.03765664]
[1768706957172,0.01342734,95229.0,95216.0,0.06951281]
[1768706957371,0.00292234,95229.0,95217.0,0.03185617]
[1768706957572,0.00292234,95229.0,95218.0,0.03185617]
[1768706957772,0.00292234,95229.0,95219.0,0.03185617]
[1768706958071,0.00292234,95229.0,95220.0,0.03185617]
[1768706958269,0.06218576,95230.0,95216.0,0.03765664]
[1768706958468,0.06218576,95230.0,95217.0,0.03185913]
[1768706958668,0.06218576,95230.0,95218.0,0.03185913]
[1768706958872,0.06218576,95230.0,95219.0,0.03185913]
[1768706959073,0.06218576,95230.0,95215.0,0.03765664]
[1768706959276,0.02235379,95231.0,95216.0,0.03163608]
[1768706959467,0.02235379,95231.0,95217.0,0.03163608]
[1768706959668,0.02235379,95231.0,95218.0,0.03163608]
[1768706959966,0.02235379,95231.0,95219.0,0.03163608]
[1768706960174,0.010506,95225.0,95215.0,0.03765664]
[1768706960371,0.010506,95225.0,95216.0,0.03163896]
[1768706960572,0.010506,95223.0,95217.0,0.03163896]
[1768706960769,0.00377584,95230.0,95218.0,9.6e-07]
[1768706960971,0.00390419,95229.0,95214.0,0.03765664]
[1768706961671,0.00390419,95221.0,95200.0,0.0946]
[1768706961872,0.00669694,95218.0,95200.0,0.0946]
[1768706963373,0.01720394,95218.0,95200.0,0.0946]
[1768706963778,0.01180493,95217.0,95200.0,0.0946]
[1768706964277,0.01175493,95217.0,95200.0,0.0946]
[1768706970682,0.01180493,95211.0,95194.0,0.010509]
[1768706971287,0.07481938,95212.0,95194.0,0.010509]
[1768706971486,0.07481938,95212.0,95194.0,0.02202765]
[1768706971787,0.01180493,95214.0,95194.0,0.02202765]
[1768706972286,0.01180493,95214.0,95195.0,0.01151865]
[1768706972875,0.01180493,95214.0,95196.0,0.010509]
[1768706973382,0.01180493,95214.0,95198.0,0.010509]
[1768706974595,0.07481938,95217.0,95198.0,0.010509]
[1768706975088,0.08959309,95217.0,95198.0,0.010509]
[1768706975289,0.01477371,95216.0,95198.0,0.010509]
[1768706976290,0.010507,95215.0,95198.0,0.010509]
[1768706976500,0.010507,95215.0,95196.0,0.01427197]
[1768706977692,0.010507,95215.0,95197.0,0.010509]
[1768706978003,0.010507,95215.0,95196.0,0.01427197]
[1768706978806,0.01477371,95216.0,95196.0,0.02478097]
[1768706979403,0.010507,95217.0,95200.0,0.01427197]
[1768706979705,0.010507,95217.0,95200.0,0.01422197]
[1768706980406,0.010507,95217.0,95199.0,0.08863928]
[1768706980706,0.0946,95218.0,95199.0,0.08863928]
[1768706981901,0.0946,95218.0,95202.0,0.01427197]
[1768706982498,0.0946,95218.0,95203.0,0.010508]
[1768706982697,0.0946,95218.0,95202.0,0.01427197]
[1768706982698,0.0946,95218.0,95205.0,0.010508]
[1768706983700,0.0946,95218.0,95202.0,0.02477997]
[1768706984116,0.0946,95218.0,95202.0,0.010508]
[1768706984503,0.105107,95218.0,95201.0,0.07813028]
[1768706985699,0.0946,95218.0,95202.0,0.010508]
[1768706986403,0.0946,95218.0,95201.0,0.07813028]
[1768706989304,0.0946,95218.0,95201.0,0.08863828]
[1768706990906,0.010507,95217.0,95201.0,0.08863828]
[1768706992311,0.0946,95218.0,95201.0,0.08863828]
[1768706993206,0.0946,95218.0,95201.0,0.10333708]
[1768706995015,0.0946,95218.0,95203.0,0.010508]
[1768706997015,0.0946,95218.0,95204.0,0.03770648]
[1768706999813,0.23016844,95220.0,95204.0,0.03770648]
[1768707000020,0.02528743,95218.0,95204.0,0.03770648]
[1768707000316,0.01478043,95218.0,95204.0,0.03770648]
[1768707001806,0.0946,95220.0,95204.0,0.03770648]
[1768707002114,0.21966244,95220.0,95204.0,0.03770648]
[1768707002714,0.21966244,95220.0,95203.0,0.03770648]
[1768707003419,0.21966244,95220.0,95203.0,0.03765398]
[1768707006714,0.21966244,95220.0,95201.0,0.010508]
[1768707007014,0.01478043,95219.0,95201.0,0.010508]
[1768707008021,0.02528643,95219.0,95199.0,0.05653959]
[1768707008208,0.01478043,95218.0,95200.0,0.010508]
[1768707012312,0.02528743,95218.0,95200.0,0.010508]
[1768707012628,0.0946,95221.0,95205.0,0.0146988]
[1768707012919,0.0946,95221.0,95199.0,0.05653959]
[1768707012920,0.11028201,95220.0,95201.0,0.07123839]
[1768707013115,0.11028201,95220.0,95201.0,0.08174639]
[1768707014223,0.10938043,95221.0,95201.0,0.07123839]
[1768707014535,0.10938043,95221.0,95202.0,0.0146988]
[1768707014821,0.0946,95221.0,95202.0,0.08916966]
[1768707015025,0.0946,95221.0,95203.0,0.0146988]
[1768707015718,0.0946,95221.0,95204.0,0.010508]
[1768707017614,0.01478043,95228.0,95210.0,0.11028201]
[1768707017822,0.010506,95226.0,95210.0,0.11028201]
[1768707018020,0.010506,95226.0,95207.0,0.010508]
[1768707018221,0.01478043,95224.0,95204.0,0.05015519]
[1768707018423,0.01478043,95228.0,95206.0,0.0146988]
[1768707019518,0.010506,95226.0,95207.0,0.010508]
[1768707019718,0.010506,95226.0,95207.0,0.0252068]
[1768707021023,0.01478043,95228.0,95207.0,0.0252068]
[1768707021423,0.04175664,95228.0,95207.0,0.0252068]
[1768707021623,0.02697621,95227.0,95207.0,0.0252068]
[1768707021927,0.02697621,95225.0,95207.0,0.0252068]
[1768707022124,0.04175664,95228.0,95207.0,0.0252068]
[1768707022526,0.02697621,95227.0,95207.0,0.0252068]
[1768707022922,0.01478043,95228.0,95207.0,0.0252068]
[1768707023127,0.02697621,95227.0,95207.0,0.0252068]
[1768707023524,0.01478043,95228.0,95207.0,0.0252068]
[1768707023724,0.02697621,95227.0,95207.0,0.0252068]
[1768707024215,0.02697621,95227.0,95209.0,0.010507]
[1768707024421,0.01478043,95228.0,95209.0,0.010507]
[1768707024623,0.02697621,95226.0,95208.0,0.01614628]
[1768707025022,0.02697621,95225.0,95208.0,0.01614628]
[1768707025221,0.02697621,95226.0,95208.0,0.01614628]
[1768707025620,0.02697621,95225.0,95208.0,0.01614628]
[1768707025827,0.02697621,95226.0,95208.0,0.01614628]
[1768707026230,0.02697621,95225.0,95208.0,0.01614628]
[1768707026732,0.010506,95227.0,95208.0,0.01614628]
[1768707026927,0.02697621,95225.0,95208.0,0.01614628]
[1768707027327,0.02697621,95224.0,95208.0,0.01614628]
[1768707027529,0.02697621,95225.0,95208.0,0.01614628]
[1768707027925,0.02697621,95224.0,95208.0,0.01614628]
[1768707028129,0.02697621,95225.0,95208.0,0.01614628]
[1768707028637,0.02697621,95224.0,95208.0,0.01614628]
[1768707028837,0.02697621,95225.0,95208.0,0.01614628]
[1768707029337,0.02697621,95224.0,95208.0,0.01614628]
[1768707029532,0.02697621,95225.0,95209.0,0.00231072]
[1768707029929,0.02697621,95223.0,95209.0,0.01281772]
[1768707030135,0.02697621,95225.0,95209.0,0.01281772]
[1768707030326,0.01478043,95228.0,95209.0,0.01281772]
[1768707030531,0.02697621,95224.0,95209.0,0.028964]
[1768707030933,0.02697621,95222.0,95209.0,0.028964]
[1768707031144,0.02697621,95224.0,95209.0,0.01281772]
[1768707031336,0.02697621,95225.0,95210.0,0.01614628]
[1768707031528,0.02697621,95223.0,95210.0,0.01614628]
[1768707032037,0.02697621,95223.0,95209.0,0.01281772]
[1768707032038,0.02697621,95221.0,95209.0,0.028964]
[1768707032237,0.02697621,95224.0,95209.0,0.028964]
[1768707032435,0.02697621,95223.0,95209.0,0.028964]
[1768707032641,0.010506,95227.0,95209.0,0.028964]
[1768707032938,0.02697621,95223.0,95209.0,0.028964]
[1768707033334,0.02697621,95221.0,95209.0,0.028964]
[1768707033534,0.010506,95227.0,95209.0,0.028964]
[1768707033835,0.02697621,95223.0,95209.0,0.028964]
[1768707034240,0.02697621,95221.0,95209.0,0.028964]
[1768707034434,0.02697621,95223.0,95209.0,0.028964]
[1768707034934,0.02697621,95221.0,95209.0,0.028964]
[1768707035138,0.02697621,95223.0,95209.0,0.028964]
[1768707035732,0.02697621,95222.0,95209.0,0.028964]
[1768707035925,0.02697621,95223.0,95209.0,0.028964]
[1768707036125,0.010506,95227.0,95209.0,0.028964]
[1768707036636,0.02697621,95222.0,95209.0,0.028964]
[1768707036937,0.02697621,95222.0,95213.0,0.02828283]
[1768707037132,0.02697621,95220.0,95212.0,0.02828283]
[1768707037354,0.02697621,95222.0,95212.0,0.02828283]
[1768707037536,0.010506,95227.0,95212.0,0.02828283]
[1768707037736,0.02697621,95221.0,95212.0,0.02828283]
[1768707038228,0.02697621,95217.0,95212.0,0.02828283]
[1768707038433,0.010506,95227.0,95212.0,0.02828283]
[1768707038434,0.02697621,95220.0,95212.0,0.02828283]
[1768707038943,0.010506,95227.0,95212.0,0.02828283]
[1768707039242,0.02697621,95220.0,95213.0,0.02828283]
[1768707039459,0.02697621,95221.0,95212.0,0.02828283]
[1768707039636,0.010506,95227.0,95212.0,0.02828283]
[1768707039943,0.02697621,95220.0,95213.0,0.02828283]
[1768707040147,0.02697621,95222.0,95213.0,0.02828283]
[1768707040342,0.010506,95227.0,95213.0,0.02828283]
[1768707040841,0.0946,95228.0,95213.0,0.02828283]
[1768707041543,0.09287661,95229.0,95214.0,0.02828283]
[1768707043040,0.09287661,95229.0,95213.0,0.02828283]
[1768707043350,0.09287661,95229.0,95214.0,0.02828283]
[1768707045742,0.07748995,95229.0,95215.0,0.010507]
[1768707045947,0.20488201,95230.0,95215.0,0.010507]
[1768707046943,0.0946,95230.0,95215.0,0.03878983]
[1768707047146,0.0946,95230.0,95216.0,0.01449455]
[1768707047348,0.20488201,95230.0,95216.0,0.01449455]
[1768707047853,0.20488201,95230.0,95215.0,0.03878983]
[1768707049850,0.20488201,95230.0,95215.0,0.02828283]
[1768707052247,0.22023219,95230.0,95215.0,0.02828283]
[1768707054554,0.22023219,95230.0,95216.0,0.02828283]
[1768707054744,0.01535018,95229.0,95216.0,0.02828283]
[1768707056953,0.01535018,95229.0,95211.0,0.010507]
[1768707056954,0.01535018,95229.0,95215.0,0.02828283]
[1768707057452,0.01535018,95229.0,95216.0,0.02828283]
[1768707058055,0.01535018,95228.0,95216.0,0.02828283]
[1768707058251,0.08125235,95229.0,95216.0,0.02828283]
[1768707059245,0.08125235,95229.0,95211.0,0.010507]
[1768707059447,0.08125235,95229.0,95216.0,0.02830188]
[1768707061453,0.01529911,95228.0,95216.0,0.02830188]
[1768707062154,0.08125235,95229.0,95216.0,0.02830188]
[1768707062554,0.09660253,95229.0,95216.0,0.02830188]
[1768707062952,0.09660253,95229.0,95217.0,0.02830188]
[1768707063156,0.01532951,95228.0,95216.0,0.02830188]
[1768707064358,0.01532951,95228.0,95217.0,0.02830188]
[1768707065053,0.08125235,95229.0,95217.0,0.02830188]
[1768707065258,0.0946,95230.0,95217.0,0.02830188]
[1768707065859,0.0946,95235.0,95218.0,0.03880788]
[1768707066064,0.0946,95235.0,95219.0,0.02830188]
[1768707066862,0.0946,95235.0,95220.0,0.02830188]
[1768707067158,0.0946,95235.0,95219.0,0.02830188]
[1768707067358,0.0946,95235.0,95220.0,0.010506]
[1768707067763,0.0946,95235.0,95220.0,0.03880788]
[1768707070271,0.10710818,95235.0,95220.0,0.03880788]
[1768707071562,0.10710818,95235.0,95221.0,0.02830188]
[1768707073174,0.10710818,95235.0,95222.0,0.010506]
[1768707073375,0.10710818,95235.0,95222.0,0.01488622]
[1768707074178,0.10710818,95235.0,95217.0,0.05260149]
[1768707074675,0.10710818,95235.0,95221.0,0.010506]
[1768707075172,0.10710818,95235.0,95222.0,0.010506]
[1768707075676,0.10710818,95235.0,95223.0,0.02894313]
[1768707075873,0.10710818,95235.0,95222.0,0.010506]
[1768707076074,0.10710818,95235.0,95223.0,0.02894302]
[1768707076371,0.01250818,95235.0,95222.0,0.010506]
[1768707076569,0.0946,95239.0,95223.0,0.02894126]
[1768707076776,0.10995018,95239.0,95219.0,0.04821499]
[1768707076978,0.10995018,95239.0,95219.0,0.010506]
[1768707077277,0.02585418,95238.0,95219.0,0.010506]
[1768707078582,0.02585418,95238.0,95217.0,0.09424313]
[1768707078583,0.02783316,95238.0,95221.0,0.010506]
[1768707080384,0.01248298,95238.0,95222.0,0.0148925]
[1768707080580,0.0946,95239.0,95224.0,0.0148925]
[1768707080581,0.010504,95235.0,95224.0,0.0148925]
[1768707080780,0.010504,95235.0,95223.0,0.07935063]
[1768707081780,0.02359525,95238.0,95221.0,0.0148925]
[1768707082084,0.02359525,95238.0,95222.0,0.02892444]
[1768707082388,0.02359525,95238.0,95221.0,0.0148925]
[1768707082585,0.02359525,95238.0,95222.0,0.02891968]
[1768707082785,0.02359525,95238.0,95221.0,0.0148925]
[1768707082986,0.02359525,95238.0,95222.0,0.02891963]
[1768707083189,0.01309225,95238.0,95221.0,0.0148925]
[1768707083378,0.0946,95239.0,95222.0,0.02891591]
[1768707083584,0.0946,95239.0,95221.0,0.0148925]
[1768707083783,0.0946,95239.0,95222.0,0.02891581]
[1768707084081,0.0946,95239.0,95221.0,0.0148925]
[1768707084274,0.0946,95239.0,95222.0,0.02891278]
[1768707084480,0.0946,95239.0,95221.0,0.0148925]
[1768707084680,0.0946,95239.0,95222.0,0.02891277]
[1768707084876,0.0946,95239.0,95221.0,0.0253975]
[1768707085080,0.0946,95239.0,95222.0,0.02891277]
[1768707085288,0.0946,95239.0,95221.0,0.0253975]
[1768707085587,0.0946,95239.0,95222.0,0.04444318]
[1768707085790,0.0946,95239.0,95222.0,0.01553311]
[1768707086191,0.10753816,95239.0,95222.0,0.01553311]
[1768707086986,0.10753816,95239.0,95225.0,0.03770899]
[1768707087300,0.10753816,95239.0,95226.0,0.02871359]
[1768707087593,0.10753816,95239.0,95227.0,0.02871359]
[1768707087795,0.10753816,95239.0,95228.0,0.02871359]
[1768707087982,0.10753816,95239.0,95229.0,0.02871359]
[1768707088290,0.10753816,95239.0,95225.0,0.03770899]
[1768707088488,0.10753816,95239.0,95226.0,0.02871085]
[1768707088789,0.10753816,95239.0,95227.0,0.02871085]
[1768707089091,0.10753816,95239.0,95228.0,0.02871085]
[1768707089384,0.01448004,95238.0,95229.0,0.02871085]
[1768707089590,0.01448004,95238.0,95225.0,0.03770899]
[1768707089801,0.01448004,95238.0,95226.0,0.02872223]
[1768707090090,0.10753816,95239.0,95227.0,0.02872223]
[1768707090294,0.10753816,95239.0,95228.0,0.02872223]
[1768707090498,0.10753816,95239.0,95229.0,0.02872223]
[1768707090688,0.10753816,95239.0,95225.0,0.03770899]
[1768707090996,0.10753816,95239.0,95226.0,0.0287215]
[1768707091201,0.10753816,95239.0,95227.0,0.0287215]
[1768707091403,0.10753816,95239.0,95228.0,0.0287215]
[1768707091585,0.10753816,95239.0,95229.0,0.0287215]
[1768707091785,0.10753816,95239.0,95225.0,0.03770899]
[1768707091992,0.12156492,95239.0,95226.0,0.02872138]
[1768707092297,0.12156492,95239.0,95227.0,0.02872138]
[1768707092593,0.12156492,95239.0,95228.0,0.02872138]
[1768707092795,0.12156492,95239.0,95229.0,0.02872138]
[1768707092996,0.12156492,95239.0,95225.0,0.03770899]
[1768707093296,0.12156492,95239.0,95226.0,0.02872018]
[1768707093495,0.12156492,95239.0,95227.0,0.02872018]
[1768707093794,0.12156492,95239.0,95228.0,0.02872018]
[1768707093995,0.12156492,95239.0,95229.0,0.02872018]
[1768707094193,0.12156492,95239.0,95225.0,0.03770899]
[1768707094492,0.12156492,95239.0,95226.0,0.02872159]
[1768707094694,0.01361781,95238.0,95227.0,0.02872159]
[1768707094895,0.01361781,95238.0,95228.0,0.02872159]
[1768707095093,0.01361781,95238.0,95229.0,0.02872159]
[1768707095295,0.01361781,95238.0,95225.0,0.03770899]
[1768707095593,0.01361781,95238.0,95226.0,0.02872305]
[1768707095794,0.01361781,95238.0,95227.0,0.02872305]
[1768707095996,0.01361781,95238.0,95228.0,0.02872305]
[1768707096196,0.01361781,95238.0,95229.0,0.02872305]
[1768707096396,0.01361781,95238.0,95225.0,0.03770899]
[1768707096796,0.01361781,95238.0,95224.0,0.03770899]
[1768707097784,0.18589524,95239.0,95225.0,0.03770899]
[1768707100301,0.12075701,95270.0,95223.0,0.010505]
[1768707100302,0.07835708,95256.0,95237.0,0.03770899]
[1768707100492,0.07835708,95256.0,95236.0,0.01455955]
[1768707100493,0.07835708,95256.0,95239.0,0.03770899]
[1768707100692,0.07835708,95256.0,95240.0,0.02868861]
[1768707100894,0.08885808,95256.0,95241.0,0.02868861]
[1768707101194,0.08885808,95256.0,95242.0,0.02868861]
[1768707101392,0.08885808,95256.0,95243.0,0.02868861]
[1768707101593,0.08885808,95256.0,95239.0,0.03770899]
[1768707101803,0.08885808,95256.0,95240.0,0.0292379]
[1768707101996,0.08885808,95256.0,95241.0,0.0292379]
[1768707102298,0.08885808,95256.0,95242.0,0.0292379]
[1768707102600,0.08885808,95256.0,95243.0,0.0292379]
[1768707102601,0.0117876,95255.0,95243.0,0.0292379]
[1768707102801,0.0117876,95255.0,95238.0,0.03770899]
[1768707103001,0.0117876,95255.0,95239.0,0.02923138]
[1768707103294,0.0117876,95255.0,95240.0,0.02923138]
[1768707103490,0.0117876,95255.0,95241.0,0.02923138]
[1768707103686,0.02478872,95255.0,95242.0,0.02923138]
[1768707103892,0.01127607,95254.0,95243.0,0.02923138]
[1768707104094,0.01127607,95254.0,95238.0,0.03770899]
[1768707104390,0.01127607,95254.0,95239.0,0.02922326]
[1768707104590,0.01127607,95254.0,95240.0,0.02922326]
[1768707104787,0.01127607,95254.0,95241.0,0.02922326]
[1768707105000,0.01127607,95254.0,95242.0,0.02922326]
[1768707105208,0.01127607,95254.0,95238.0,0.03770899]
[1768707105413,0.01127607,95254.0,95239.0,0.02922105]
[1768707105598,0.01127607,95254.0,95240.0,0.02922105]
[1768707105797,0.01127607,95254.0,95241.0,0.02922105]
[1768707105998,0.01127607,95254.0,95242.0,0.02922105]
[1768707106198,0.01127607,95254.0,95237.0,0.03770899]
[1768707106407,0.0913582,95255.0,95238.0,0.02921892]
[1768707106609,0.0913582,95255.0,95239.0,0.02921892]
[1768707106797,0.0913582,95255.0,95240.0,0.06692791]
[1768707106798,0.01300112,95255.0,95240.0,0.06692791]
[1768707106997,0.0946,95257.0,95241.0,0.02921892]
[1768707107198,0.0946,95257.0,95242.0,0.02921892]
[1768707107400,0.0946,95257.0,95243.0,0.02921892]
[1768707107707,0.0946,95257.0,95236.0,0.07109914]
[1768707107708,0.010501,95259.0,95244.0,0.02921892]
[1768707107906,0.0105,95263.0,95245.0,0.02921892]
[1768707108108,0.00230937,95264.0,95248.0,0.01455955]
[1768707108303,0.00230937,95264.0,95251.0,0.01455955]
[1768707109021,0.010501,95261.0,95251.0,0.01455955]
[1768707109609,0.010501,95261.0,95250.0,0.08158103]
[1768707109806,0.01488851,95264.0,95248.0,0.01455955]
[1768707109807,0.010501,95255.0,95248.0,0.01455955]
[1768707109999,0.010501,95255.0,95248.0,5.5e-07]
[1768707111798,0.01488851,95264.0,95248.0,5.5e-07]
[1768707112196,0.01488851,95264.0,95242.0,0.17618103]
[1768707112408,0.01488851,95264.0,95243.0,0.01579074]
[1768707112608,0.01488851,95264.0,95245.0,0.01579074]
[1768707112807,0.010501,95258.0,95245.0,0.01579074]
[1768707113005,0.010501,95255.0,95245.0,0.01579074]
[1768707113200,0.01488851,95264.0,95245.0,0.01579074]
[1768707113406,0.010502,95251.0,95242.0,0.0946]
[1768707113915,0.010502,95251.0,95238.0,6.1e-07]
[1768707113916,0.01589005,95250.0,95238.0,6.1e-07]
[1768707114104,0.10027705,95240.0,95231.0,0.0946]
[1768707114305,0.010503,95236.0,95226.0,0.0946]
[1768707114610,0.09489,95240.0,95226.0,0.0946]
[1768707114808,0.010503,95237.0,95226.0,0.0946]
[1768707115811,0.010503,95243.0,95226.0,0.0946]
[1768707116019,0.010503,95240.0,95226.0,0.0946]
[1768707116811,0.02639305,95244.0,95226.0,0.0946]
[1768707117113,0.010503,95241.0,95226.0,0.0946]
[1768707120012,0.01589005,95244.0,95226.0,0.0946]
[1768707120212,0.10027705,95243.0,95226.0,0.0946]
[1768707121108,0.084387,95241.0,95226.0,0.0946]
[1768707121310,0.010503,95239.0,95226.0,0.0946]
[1768707121508,0.010503,95242.0,95226.0,0.0946]
[1768707121909,0.010503,95242.0,95230.0,0.02892174]
[1768707122103,0.010503,95242.0,95231.0,0.02892174]
[1768707122308,0.010503,95242.0,95232.0,0.02892174]
[1768707122606,0.010503,95242.0,95226.0,0.0946]
[1768707122912,0.010503,95242.0,95230.0,0.02892373]
[1768707123103,0.010503,95242.0,95231.0,0.02892373]
[1768707123299,0.010503,95242.0,95232.0,0.02892373]
[1768707123514,0.010503,95242.0,95233.0,0.02892373]
[1768707123814,0.010503,95242.0,95234.0,0.02892158]
[1768707124007,0.010503,95242.0,95226.0,0.15113959]
[1768707124208,0.010503,95240.0,95230.0,0.02892024]
[1768707124408,0.010503,95240.0,95231.0,0.02892024]
[1768707124619,0.010503,95240.0,95232.0,0.02892024]
[1768707124806,0.010503,95240.0,95233.0,0.02892024]
[1768707125007,0.010503,95244.0,95234.0,0.02892024]
[1768707125208,0.010503,95244.0,95226.0,0.15113959]
[1768707125516,0.010503,95244.0,95230.0,0.02892499]
[1768707125710,0.010503,95244.0,95231.0,0.02892499]
[1768707125914,0.010503,95244.0,95232.0,0.02892499]
[1768707126115,0.010503,95244.0,95233.0,0.02892499]
[1768707126316,0.010503,95244.0,95234.0,0.02892499]
[1768707126532,0.010503,95244.0,95235.0,0.02892499]
[1768707126817,0.010503,95244.0,95226.0,0.15113959]
[1768707127017,0.010502,95246.0,95230.0,0.11022691]
[1768707127223,0.084387,95253.0,95232.0,0.0847273]
[1768707127519,0.084387,95253.0,95234.0,0.01579074]
[1768707127520,0.010502,95252.0,95234.0,0.01579074]
[1768707128920,0.010502,95250.0,95234.0,0.01579074]
[1768707132214,0.094889,95253.0,95234.0,0.01579074]
[1768707132411,0.084387,95258.0,95240.0,0.11022691]
[1768707132612,0.084387,95258.0,95240.0,0.12601765]
[1768707133112,0.084387,95258.0,95240.0,0.01579074]
[1768707133317,0.010501,95255.0,95240.0,0.01579074]
[1768707133517,0.010501,95255.0,95237.0,0.11295038]
[1768707135319,0.010501,95255.0,95238.0,0.01579074]
[1768707135524,0.084387,95258.0,95238.0,0.01579074]
[1768707135718,0.010502,95253.0,95238.0,0.01579074]
[1768707137026,0.010502,95253.0,95244.0,0.02822249]
[1768707139531,0.010502,95253.0,95245.0,0.057177]
[1768707139724,0.010502,95253.0,95245.0,0.02822249]
[1768707140534,0.010502,95251.0,95245.0,4.9e-07]
[1768707140723,0.010502,95251.0,95238.0,0.01579074]
[1768707140924,0.010502,95251.0,95239.0,0.02883586]
[1768707141123,0.010502,95251.0,95240.0,0.02883586]
[1768707141324,0.010502,95251.0,95241.0,0.02883586]
[1768707141524,0.010501,95255.0,95242.0,0.02883586]
[1768707141724,0.010501,95255.0,95243.0,0.02883586]
[1768707141931,0.010501,95255.0,95244.0,0.02883586]
[1768707142128,0.010501,95255.0,95245.0,0.02883586]
[1768707142320,0.010501,95255.0,95240.0,0.01579074]
[1768707142630,0.010502,95253.0,95241.0,0.02884212]
[1768707142832,0.010501,95256.0,95242.0,0.02884212]
[1768707143026,0.010501,95256.0,95243.0,0.02884212]
[1768707143227,0.010501,95256.0,95244.0,0.02884212]
[1768707143427,0.010501,95256.0,95245.0,0.02884212]
[1768707143626,0.010501,95256.0,95240.0,0.01579074]
[1768707144031,0.010501,95256.0,95241.0,0.0376509]
[1768707144623,0.010501,95256.0,95242.0,0.0288148]
[1768707144831,0.010501,95256.0,95243.0,0.0288148]
[1768707145126,0.010501,95256.0,95244.0,0.0288148]
[1768707145333,0.010501,95256.0,95245.0,0.0288148]